[Event "FIDE WYCC Girls U14 2023"]
[Site "Montesilvano"]
[Date "2023.11.15"]
[Round "3.34"]
[White "Namala, Dhanvi"]
[Black "Briem, Gudrun Fanney"]
[Result "0-1"]
[ECO "B12"]
[WhiteElo "1388"]
[BlackElo "1692"]
[Annotator "NA"]
[PlyCount "80"]
[EventDate "2023.11.13"]
[EventType "swiss"]
[EventCountry "ITA"]
[SourceTitle "playchess.com"]
[Source "ChessBase"]
[SourceQuality "1"]
[TimeControl "40/5400+30:1800+30"]

1. e4 {[%emt 0:00:03]} c6 {[%emt 0:00:09]} 2. d4 {[%emt 0:00:04]} d5 {[%emt 0:00:07]} 3. e5 {[%emt 0:00:06]} Bf5 {[%emt 0:00:09]} 4. h4 {[%emt 0:00:10]} h6 {[%emt 0:00:53]} 5. g4 {[%emt 0:00:10]} Bd7 {[%emt 0:00:09]} 6. Bd3 {[%emt 0:01:55]} e6 {[%emt 0:01:02]} 7. h5 {[%emt 0:00:41]} c5 {[%emt 0:00:57]} 8. c3 {[%emt 0:00:48]} Nc6 {[%emt 0:00:28]} 9. Ne2 {[%emt 0:01:36]} Qb6 {[%emt 0:01:06]} 10. Bc2 {[%emt 0:03:18]} O-O-O {[%emt 0:11:58]} 11. a4 {[%emt 0:06:25]} Be7 {[%emt 0:09:01]} 12. Na3 {[%emt 0:02:36]} a6 {[%emt 0:04:07]} 13. Rb1 {[%emt 0:10:12]} cxd4 {[%emt 0:03:20]} 14. cxd4 {[%emt 0:01:24]} Bb4+ {[%emt 0:00:44]} 15. Kf1 {[%emt 0:01:36]} Nge7 {[%emt 0:06:04]} 16. Bd2 {[%emt 0:06:12]} Kb8 {[%emt 0:06:37]} 17. Bc3 {[%emt 0:04:56]} Rhf8 {[%emt 0:06:52]} 18. Bd3 {[%emt 0:11:04]} f6 {[%emt 0:01:24]} 19. Bxb4 {[%emt 0:06:01]} Nxb4 {[%emt 0:00:18]} 20. Rh3 {[%emt 0:02:50]} fxe5 {[%emt 0:01:01]} 21. Nc2 {[%emt 0:01:20]} Nec6 {[%emt 0:04:56]} 22. Nxb4 {[%emt 0:05:19]} Nxb4 {[%emt 0:00:48]} 23. Ra1 {[%emt 0:03:53]} a5 {[%emt 0:03:35]} 24. Ra3 {[%emt 0:03:32]} e4 {[%emt 0:01:48]} 25. Bb1 {[%emt 0:01:45]} e5 {[%emt 0:00:25]} 26. Rhg3 {[%emt 0:01:29]} Rf7 {[%emt 0:04:43]} 27. Rg2 {[%emt 0:03:19]} Rdf8 {[%emt 0:00:32]} 28. Rag3 {[%emt 0:02:49]} Rf3 {[%emt 0:04:07]} 29. Ng1 {[%emt 0:04:09]} Rxg3 {[%emt 0:02:33]} 30. Rxg3 {[%emt 0:00:18]} exd4 {[%emt 0:01:28]} 31. Kg2 {[%emt 0:02:41]} d3 {[%emt 0:02:06]} 32. Nh3 {[%emt 0:02:14]} Qd4 {[%emt 0:02:00]} 33. b3 {[%emt 0:01:27]} Qb2 {[%emt 0:01:47]} 34. Kh2 {[%emt 0:05:09]} d4 {[%emt 0:00:34]} 35. Kh1 {[%emt 0:00:51]} Bc6 {[%emt 0:00:31]} 36. Kg1 {[%emt 0:00:23]} Qe2 {[%emt 0:01:53]} 37. Qf1 {[%emt 0:01:31]} Bd5 {[%emt 0:01:58]} 38. Rg2 {[%emt 0:01:13]} Rc8 {[%emt 0:07:20]} 39. f4 {[%emt 0:02:49]} Qxf1+ {[%emt 0:00:16]} 40. Kxf1 {[%emt 0:00:00]} Rc1+ {[%emt 0:00:00]} 0-1

[Event "FIDE WYCC Girls U14 2023"]
[Site "Montesilvano"]
[Date "2023.11.15"]
[Round "3.35"]
[White "Huang, Jolie"]
[Black "Nguyen, Thuy Linh"]
[Result "0-1"]
[ECO "A61"]
[WhiteElo "1680"]
[BlackElo "1398"]
[Annotator "NA"]
[PlyCount "100"]
[EventDate "2023.11.13"]
[EventType "swiss"]
[EventCountry "ITA"]
[SourceTitle "playchess.com"]
[Source "ChessBase"]
[SourceQuality "1"]
[TimeControl "40/5400+30:1800+30"]

1. d4 {[%emt 0:00:03]} c5 {[%emt 0:00:21]} 2. d5 {[%emt 0:00:49]} e6 {[%emt 0:00:13]} 3. c4 {[%emt 0:00:29]} exd5 {[%emt 0:00:12]} 4. cxd5 {[%emt 0:00:40]} Nf6 {[%emt 0:00:24]} 5. Nc3 {[%emt 0:00:47]} d6 {[%emt 0:00:15]} 6. Nf3 {[%emt 0:00:29]} g6 {[%emt 0:00:11]} 7. Nd2 {[%emt 0:00:55]} Bg7 {[%emt 0:01:11]} 8. e4 {[%emt 0:00:18]} O-O {[%emt 0:00:29]} 9. Be2 {[%emt 0:00:18]} a6 {[%emt 0:01:24]} 10. a4 {[%emt 0:00:54]} Nfd7 {[%emt 0:02:57]} 11. O-O {[%emt 0:02:26]} f5 {[%emt 0:01:38]} 12. Nc4 {[%emt 0:11:50]} Ne5 {[%emt 0:02:35]} 13. f4 {[%emt 0:09:09]} Nxc4 {[%emt 0:03:43]} 14. Bxc4 {[%emt 0:00:31]} Nd7 {[%emt 0:24:54]} 15. Qc2 {[%emt 0:07:00]} Bd4+ {[%emt 0:03:33]} 16. Kh1 {[%emt 0:01:16]} Nf6 {[%emt 0:00:49]} 17. Bd3 {[%emt 0:21:24]} Ng4 {[%emt 0:02:06]} 18. g3 {[%emt 0:01:11]} Rb8 {[%emt 0:02:19]} 19. Rb1 {[%emt 0:05:42]} b5 {[%emt 0:01:46]} 20. b3 {[%emt 0:08:34]} Qe7 {[%emt 0:04:39]} 21. Bd2 {[%emt 0:09:28]} b4 {[%emt 0:09:23]} 22. Ne2 {[%emt 0:02:15]} fxe4 {[%emt 0:00:38]} 23. Bxe4 {[%emt 0:00:38]} Nf2+ {[%emt 0:01:43]} 24. Rxf2 {[%emt 0:00:14]} Bxf2 {[%emt 0:00:07]} 25. Kg2 {[%emt 0:00:24]} Re8 {[%emt 0:00:44]} 26. Bd3 {[%emt 0:01:16]} Be3 {[%emt 0:00:14]} 27. Bxe3 {[%emt 0:05:50]} Qxe3 {[%emt 0:00:11]} 28. Ng1 {[%emt 0:01:45]} Bb7 {[%emt 0:00:29]} 29. Bc4 {[%emt 0:03:34]} Qe4+ {[%emt 0:00:29]} 30. Qxe4 {[%emt 0:00:05]} Rxe4 {[%emt 0:00:07]} 31. Nf3 {[%emt 0:00:11]} h6 {[%emt 0:00:27]} 32. Rd1 {[%emt 0:00:43]} Rbe8 {[%emt 0:00:36]} 33. Kf2 {[%emt 0:00:45]} a5 {[%emt 0:01:35]} 34. Bd3 {[%emt 0:01:32]} Re3 {[%emt 0:01:25]} 35. Bc4 {[%emt 0:03:00]} Rc3 {[%emt 0:00:49]} 36. Kg2 {[%emt 0:01:26]} Bc8 {[%emt 0:00:27]} 37. Nh4 {[%emt 0:00:35]} g5 {[%emt 0:01:14]} 38. fxg5 {[%emt 0:00:19]} hxg5 {[%emt 0:00:08]} 39. Nf3 {[%emt 0:00:13]} Bg4 {[%emt 0:00:13]} 40. Rf1 {[%emt 0:00:00]} Rc2+ {[%emt 0:00:00]} 41. Kg1 {[%emt 0:02:41]} Bxf3 {[%emt 0:00:49]} 42. Rxf3 {[%emt 0:00:09]} Re1+ {[%emt 0:00:36]} 43. Bf1 {[%emt 0:02:51]} Rc3 {[%emt 0:00:51]} 44. Rf6 {[%emt 0:00:06]} Rcc1 {[%emt 0:00:54]} 45. Rxd6 {[%emt 0:00:49]} Rxf1+ {[%emt 0:00:12]} 46. Kg2 {[%emt 0:00:03]} Rfd1 {[%emt 0:00:16]} 47. Rg6+ {[%emt 0:00:31]} Kf7 {[%emt 0:00:05]} 48. Rxg5 {[%emt 0:00:06]} c4 {[%emt 0:00:04]} 49. bxc4 {[%emt 0:00:19]} b3 {[%emt 0:00:16]} 50. d6 {[%emt 0:00:19]} b2 {[%emt 0:00:19]} 0-1

[Event "FIDE WYCC Girls U14 2023"]
[Site "Montesilvano"]
[Date "2023.11.16"]
[Round "4.1"]
[White "Natoli, Alessia"]
[Black "Lyutsinger, Iren"]
[Result "1-0"]
[ECO "E10"]
[WhiteElo "1756"]
[BlackElo "2020"]
[Annotator "NA RC"]
[PlyCount "71"]
[EventDate "2023.11.13"]
[EventType "swiss"]
[EventCountry "ITA"]
[SourceTitle "playchess.com"]
[Source "ChessBase"]
[SourceQuality "1"]
[TimeControl "40/5400+30:1800+30"]

1. d4 {[%emt 0:00:02]} Nf6 {[%emt 0:00:15]} 2. c4 {[%emt 0:00:13]} e6 {[%emt 0:00:39]} 3. Nf3 {[%emt 0:02:04]} d5 {[%emt 0:00:59]} 4. e3 {[%emt 0:01:29]} c5 {[%emt 0:03:47]} 5. Nc3 {[%emt 0:01:38]} Nc6 {[%emt 0:01:18]} 6. cxd5 {[%emt 0:08:30]} Nxd5 {[%emt 0:06:02]} 7. Bb5 {[%emt 0:05:52]} cxd4 {[%emt 0:12:29]} 8. Nxd4 {[%emt 0:06:09]} Nxc3 {[%emt 0:02:10]} 9. bxc3 {[%emt 0:01:14]} Bd7 {[%emt 0:01:54]} 10. Nxc6 {[%emt 0:01:34]} Bxc6 {[%emt 0:04:36]} 11. Bxc6+ {[%emt 0:01:08]} bxc6 {[%emt 0:00:01]} 12. Qa4 {[%emt 0:02:59]} Qc7 {[%emt 0:03:09]} 13. Ba3 {[%emt 0:07:31]} Bxa3 {[%emt 0:05:55]} 14. Qxa3 {[%emt 0:02:07]} c5 {[%emt 0:02:05]} 15. Qa4+ {[%emt 0:03:48]} Qd7 {[%emt 0:00:52]} 16. Qc4 {[%emt 0:00:57]} O-O {[%emt 0:08:26]} 17. Rd1 {[%emt 0:05:54]} Qc6 {[%emt 0:01:20]} 18. O-O {[%emt 0:00:40]} Rfd8 {[%emt 0:03:09]} 19. Rd3 {[%emt 0:06:37]} Qb6 {[%emt 0:13:39]} 20. Rfd1 {[%emt 0:02:20]} Rxd3 {[%emt 0:00:35]} 21. Qxd3 {[%emt 0:00:10]} Rb8 {[%emt 0:00:25]} 22. h3 {[%emt 0:02:06]} h6 {[%emt 0:02:35]} 23. Qd7 {[%emt 0:03:33]} Rb7 {[%emt 0:03:50]} 24. Qc8+ {[%emt 0:06:28]} Kh7 {[%emt 0:00:03]} 25. Kh2 {[%emt 0:09:40]} a5 {[%emt 0:03:58]} 26. Rd8 {[%emt 0:02:10]} Rc7 {[%emt 0:02:14]} 27. Rh8+ {[%emt 0:03:01]} Kg6 {[%emt 0:00:01]} 28. Qg8 {[%emt 0:00:27]} Qd6+ {[%emt 0:07:23]} 29. f4 {[%emt 0:02:43]} e5 {[%emt 0:08:00]} 30. Qh7+ {[%emt 0:01:42]} Kf6 {[%emt 0:00:25]} 31. Rg8 {[%emt 0:00:38]} exf4 {[%emt 0:02:24]} 32. Qxg7+ {[%emt 0:00:16]} Ke6 {[%emt 0:01:18]} 33. Qxh6+ {[%emt 0:01:01]} f6 {[%emt 0:00:29]} 34. exf4 {[%emt 0:00:43]} Rh7 {[%emt 0:00:19]} 35. Qxh7 {[%emt 0:01:09]} Qxf4+ {[%emt 0:00:05]} 36. Rg3 {[%emt 0:00:05]} 1-0

[Event "FIDE WYCC Girls U14 2023"]
[Site "Montesilvano"]
[Date "2023.11.16"]
[Round "4.2"]
[White "Shukhman, Anna"]
[Black "Khulan, Bayarsaikhan"]
[Result "1-0"]
[ECO "C41"]
[WhiteElo "2263"]
[BlackElo "1615"]
[Annotator "RC"]
[PlyCount "99"]
[EventDate "2023.11.13"]
[EventType "swiss"]
[EventCountry "ITA"]
[SourceTitle "playchess.com"]
[Source "ChessBase"]
[SourceQuality "1"]
[TimeControl "40/5400+30:1800+30"]

1. e4 {[%emt 0:00:03]} d6 {[%emt 0:00:02]} 2. d4 {[%emt 0:00:06]} Nf6 {[%emt 0:00:04]} 3. Nc3 {[%emt 0:00:02]} e5 {[%emt 0:00:09]} 4. Nf3 {[%emt 0:00:03]} Nbd7 {[%emt 0:00:06]} 5. a4 {[%emt 0:01:06]} c6 {[%emt 0:00:26]} 6. Bc4 {[%emt 0:00:04]} Be7 {[%emt 0:00:10]} 7. O-O {[%emt 0:02:31]} O-O {[%emt 0:00:19]} 8. Re1 {[%emt 0:05:09]} Qc7 {[%emt 0:01:39]} 9. a5 {[%emt 0:02:18]} h6 {[%emt 0:01:40]} 10. Bf1 {[%emt 0:07:51]} Rd8 {[%emt 0:01:35]} 11. d5 {[%emt 0:07:35]} Nf8 {[%emt 0:04:41]} 12. b4 {[%emt 0:02:04]} cxd5 {[%emt 0:07:19]} 13. Nxd5 {[%emt 0:00:15]} Nxd5 {[%emt 0:00:06]} 14. exd5 {[%emt 0:00:04]} Bg4 {[%emt 0:07:13]} 15. c4 {[%emt 0:03:15]} f5 {[%emt 0:02:14]} 16. Qb3 {[%emt 0:00:23]} b6 {[%emt 0:01:07]} 17. c5 {[%emt 0:20:45]} Bxf3 {[%emt 0:02:32]} 18. Qxf3 {[%emt 0:00:05]} bxc5 {[%emt 0:00:39]} 19. bxc5 {[%emt 0:00:54]} Qxc5 {[%emt 0:00:43]} 20. Be3 {[%emt 0:03:24]} Qc7 {[%emt 0:18:49]} 21. Qxf5 {[%emt 0:06:45]} Rdb8 {[%emt 0:07:09]} 22. Rec1 {[%emt 0:06:29]} Qb7 {[%emt 0:01:28]} 23. Rab1 {[%emt 0:01:22]} Qd7 {[%emt 0:03:48]} 24. Qxd7 {[%emt 0:00:12]} Nxd7 {[%emt 0:00:13]} 25. Rxb8+ {[%emt 0:00:25]} Rxb8 {[%emt 0:00:46]} 26. Rc7 {[%emt 0:00:19]} Rd8 {[%emt 0:01:51]} 27. Bb5 {[%emt 0:00:25]} Rb8 {[%emt 0:00:21]} 28. Bxd7 {[%emt 0:00:42]} Bd8 {[%emt 0:01:45]} 29. Rc1 {[%emt 0:00:45]} Bxa5 {[%emt 0:00:50]} 30. Rc8+ {[%emt 0:00:30]} Rxc8 {[%emt 0:00:04]} 31. Bxc8 {[%emt 0:00:02]} Bb4 {[%emt 0:00:36]} 32. Bxa7 {[%emt 0:00:04]} Kf7 {[%emt 0:00:12]} 33. Kf1 {[%emt 0:00:04]} Ke7 {[%emt 0:00:37]} 34. Ke2 {[%emt 0:00:05]} Ba5 {[%emt 0:00:48]} 35. Kf3 {[%emt 0:00:06]} Kf6 {[%emt 0:00:52]} 36. Ke4 {[%emt 0:00:05]} g6 {[%emt 0:00:27]} 37. Be3 {[%emt 0:00:05]} Be1 {[%emt 0:05:58]} 38. g4 {[%emt 0:00:53]} Kg7 {[%emt 0:05:12]} 39. h4 {[%emt 0:00:16]} Kf6 {[%emt 0:01:54]} 40. h5 {[%emt 0:00:00]} g5 {[%emt 0:00:00]} 41. Bb6 {[%emt 0:02:01]} Bd2 {[%emt 0:05:43]} 42. Bd8+ {[%emt 0:00:07]} Kf7 {[%emt 0:00:01]} 43. Kf5 {[%emt 0:00:08]} Bb4 {[%emt 0:00:15]} 44. Be6+ {[%emt 0:00:05]} Kg7 {[%emt 0:00:08]} 45. Bf6+ {[%emt 0:00:04]} Kh7 {[%emt 0:00:06]} 46. Bf7 {[%emt 0:00:05]} Bc3 {[%emt 0:00:55]} 47. Ke6 {[%emt 0:00:05]} Be1 {[%emt 0:00:30]} 48. Ke7 {[%emt 0:00:05]} e4 {[%emt 0:02:03]} 49. Kf8 {[%emt 0:00:04]} Bc3 {[%emt 0:00:10]} 50. Bg8# {[%emt 0:00:04]} 1-0

[Event "FIDE WYCC Girls U14 2023"]
[Site "Montesilvano"]
[Date "2023.11.16"]
[Round "4.3"]
[White "Piddubna, Bozhena"]
[Black "Skramstad, Oda Kofoed"]
[Result "1-0"]
[ECO "A37"]
[WhiteElo "2081"]
[BlackElo "1801"]
[Annotator "NA RC"]
[PlyCount "53"]
[EventDate "2023.11.13"]
[EventType "swiss"]
[EventCountry "ITA"]
[SourceTitle "playchess.com"]
[Source "ChessBase"]
[SourceQuality "1"]
[TimeControl "40/5400+30:1800+30"]

1. c4 {[%emt 0:00:27]} c5 {[%emt 0:01:28]} 2. Nf3 {[%emt 0:00:16]} Nc6 {[%emt 0:01:45]} 3. g3 {[%emt 0:01:19]} g6 {[%emt 0:00:29]} 4. Bg2 {[%emt 0:00:10]} Bg7 {[%emt 0:00:58]} 5. Nc3 {[%emt 0:00:30]} d6 {[%emt 0:02:24]} 6. O-O {[%emt 0:00:29]} Bf5 {[%emt 0:01:19]} 7. b3 {[%emt 0:03:02]} Qd7 {[%emt 0:02:57]} 8. Bb2 {[%emt 0:01:06]} Nf6 {[%emt 0:06:04]} 9. d4 {[%emt 0:07:50]} cxd4 {[%emt 0:05:01]} 10. Nxd4 {[%emt 0:00:31]} Bh3 {[%emt 0:04:15]} 11. Nd5 {[%emt 0:09:06]} Nxd5 {[%emt 0:10:18]} 12. cxd5 {[%emt 0:04:00]} Nxd4 {[%emt 0:01:51]} 13. Bxd4 {[%emt 0:00:11]} Bxd4 {[%emt 0:01:49]} 14. Qxd4 {[%emt 0:00:08]} O-O {[%emt 0:00:55]} 15. Bxh3 {[%emt 0:02:01]} Qxh3 {[%emt 0:00:34]} 16. Rac1 {[%emt 0:02:57]} Qd7 {[%emt 0:02:49]} 17. Rc4 {[%emt 0:02:24]} a6 {[%emt 0:11:55]} 18. Rfc1 {[%emt 0:01:14]} Rac8 {[%emt 0:01:09]} 19. h4 {[%emt 0:02:29]} Rfd8 {[%emt 0:06:43]} 20. h5 {[%emt 0:06:12]} gxh5 {[%emt 0:05:15]} 21. Qh4 {[%emt 0:02:44]} Rxc4 {[%emt 0:06:10]} 22. Rxc4 {[%emt 0:01:32]} Qf5 {[%emt 0:14:00]} 23. Qxe7 {[%emt 0:02:28]} Rd7 {[%emt 0:00:09]} 24. Qe8+ {[%emt 0:04:06]} Kg7 {[%emt 0:00:09]} 25. Rf4 {[%emt 0:00:08]} Qh3 {[%emt 0:01:20]} 26. Rh4 {[%emt 0:00:20]} Qf5 {[%emt 0:01:35]} 27. e4 {[%emt 0:00:09]} 1-0

[Event "FIDE WYCC Girls U14 2023"]
[Site "Montesilvano"]
[Date "2023.11.16"]
[Round "4.4"]
[White "Mgeladze, Kesaria"]
[Black "Stefan, Iulia-Cristiana"]
[Result "1/2-1/2"]
[ECO "D00"]
[WhiteElo "2065"]
[BlackElo "1748"]
[Annotator "NA RC"]
[PlyCount "103"]
[EventDate "2023.11.13"]
[EventType "swiss"]
[EventCountry "ITA"]
[SourceTitle "playchess.com"]
[Source "ChessBase"]
[SourceQuality "1"]
[TimeControl "40/5400+30:1800+30"]

1. d4 {[%emt 0:00:04]} d5 {[%emt 0:00:05]} 2. Nc3 {[%emt 0:00:08]} Nf6 {[%emt 0:00:06]} 3. Bf4 {[%emt 0:00:07]} a6 {[%emt 0:00:04]} 4. e3 {[%emt 0:00:14]} Bf5 {[%emt 0:00:35]} 5. f3 {[%emt 0:00:07]} e6 {[%emt 0:00:24]} 6. g4 {[%emt 0:00:08]} Bg6 {[%emt 0:00:03]} 7. h4 {[%emt 0:00:08]} h5 {[%emt 0:00:12]} 8. g5 {[%emt 0:00:08]} Nfd7 {[%emt 0:00:07]} 9. Bd3 {[%emt 0:06:18]} Bxd3 {[%emt 0:00:11]} 10. Qxd3 {[%emt 0:00:05]} g6 {[%emt 0:00:09]} 11. e4 {[%emt 0:01:24]} c6 {[%emt 0:00:19]} 12. Nh3 {[%emt 0:10:09]} Bg7 {[%emt 0:00:42]} 13. O-O-O {[%emt 0:17:40]} O-O {[%emt 0:03:58]} 14. Ne2 {[%emt 0:01:26]} Nb6 {[%emt 0:04:12]} 15. Ng3 {[%emt 0:13:14]} N8d7 {[%emt 0:28:56]} 16. Bd6 {[%emt 0:08:06]} Re8 {[%emt 0:00:43]} 17. f4 {[%emt 0:00:28]} Nc4 {[%emt 0:04:37]} 18. Be5 {[%emt 0:06:25]} Ndxe5 {[%emt 0:04:57]} 19. fxe5 {[%emt 0:00:22]} Qa5 {[%emt 0:02:48]} 20. Qb3 {[%emt 0:05:50]} Qb5 {[%emt 0:06:41]} 21. Qc3 {[%emt 0:02:42]} Qa5 {[%emt 0:08:56]} 22. Qb3 {[%emt 0:01:54]} Qb5 {[%emt 0:00:18]} 23. Nf4 {[%emt 0:03:48]} Qxb3 {[%emt 0:02:24]} 24. axb3 {[%emt 0:00:04]} Nb6 {[%emt 0:01:42]} 25. Rhf1 {[%emt 0:01:15]} Rac8 {[%emt 0:06:11]} 26. Nd3 {[%emt 0:02:08]} Bf8 {[%emt 0:04:48]} 27. exd5 {[%emt 0:02:16]} cxd5 {[%emt 0:00:55]} 28. Rf2 {[%emt 0:00:41]} Rc7 {[%emt 0:02:18]} 29. Rdf1 {[%emt 0:01:40]} Rec8 {[%emt 0:01:05]} 30. Kb1 {[%emt 0:01:32]} Ra8 {[%emt 0:02:26]} 31. Ne2 {[%emt 0:03:04]} Rd8 {[%emt 0:03:02]} 32. Nc3 {[%emt 0:00:18]} Rdd7 {[%emt 0:01:01]} 33. Nf4 {[%emt 0:00:46]} Rd8 {[%emt 0:00:20]} 34. Nd3 {[%emt 0:01:13]} Rdd7 {[%emt 0:00:29]} 35. Rf6 {[%emt 0:02:23]} Bg7 {[%emt 0:02:36]} 36. R6f3 {[%emt 0:00:59]} Bf8 {[%emt 0:00:16]} 37. R1f2 {[%emt 0:00:33]} Rd8 {[%emt 0:00:31]} 38. Nd1 {[%emt 0:01:01]} Rdd7 {[%emt 0:00:45]} 39. Ne3 {[%emt 0:00:42]} Rc8 {[%emt 0:01:36]} 40. Nf4 {[%emt 0:00:00]} Bb4 {[%emt 0:00:00]} 41. Nd3 {[%emt 0:04:25]} Bf8 {[%emt 0:02:12]} 42. Ng2 {[%emt 0:00:30]} Rcc7 {[%emt 0:00:24]} 43. Ngf4 {[%emt 0:03:12]} Rc8 {[%emt 0:01:29]} 44. Rg3 {[%emt 0:00:33]} Kh7 {[%emt 0:03:01]} 45. Ne1 {[%emt 0:01:12]} Bg7 {[%emt 0:01:46]} 46. Rff3 {[%emt 0:01:42]} Bf8 {[%emt 0:00:50]} 47. Rg2 {[%emt 0:02:51]} Bb4 {[%emt 0:01:20]} 48. Ned3 {[%emt 0:00:29]} Bf8 {[%emt 0:00:13]} 49. Rgf2 {[%emt 0:00:12]} Kg8 {[%emt 0:00:38]} 50. Ne2 {[%emt 0:02:01]} Rcc7 {[%emt 0:00:23]} 51. Nc3 {[%emt 0:00:13]} Rc8 {[%emt 0:00:34]} 52. Nf4 {[%emt 0:01:47]} 1/2-1/2

[Event "FIDE WYCC Girls U14 2023"]
[Site "Montesilvano"]
[Date "2023.11.16"]
[Round "4.5"]
[White "Sachi Jain"]
[Black "Kaliakhmet, Elnaz"]
[Result "0-1"]
[ECO "B30"]
[WhiteElo "1743"]
[BlackElo "1933"]
[Annotator "NA RC"]
[PlyCount "60"]
[EventDate "2023.11.13"]
[EventType "swiss"]
[EventCountry "ITA"]
[SourceTitle "playchess.com"]
[Source "ChessBase"]
[SourceQuality "1"]
[TimeControl "40/5400+30:1800+30"]

1. e4 {[%emt 0:00:10]} c5 {[%emt 0:00:18]} 2. Nf3 {[%emt 0:00:22]} Nc6 {[%emt 0:00:16]} 3. d3 {[%emt 0:02:33]} g6 {[%emt 0:01:19]} 4. c3 {[%emt 0:02:34]} d5 {[%emt 0:15:38]} 5. Nbd2 {[%emt 0:07:48]} Bg7 {[%emt 0:00:24]} 6. g3 {[%emt 0:03:14]} e5 {[%emt 0:02:59]} 7. Bg2 {[%emt 0:03:53]} Nge7 {[%emt 0:00:27]} 8. O-O {[%emt 0:03:25]} O-O {[%emt 0:00:23]} 9. Re1 {[%emt 0:08:55]} h6 {[%emt 0:03:46]} 10. exd5 {[%emt 0:15:19]} Nxd5 {[%emt 0:00:52]} 11. Nc4 {[%emt 0:00:01]} Re8 {[%emt 0:00:21]} 12. Qb3 {[%emt 0:00:08]} Nc7 {[%emt 0:33:03]} 13. a4 {[%emt 0:04:52]} Rb8 {[%emt 0:07:18]} 14. Be3 {[%emt 0:10:33]} Be6 {[%emt 0:02:25]} 15. Rad1 {[%emt 0:01:38]} a6 {[%emt 0:09:26]} 16. Qb6 {[%emt 0:13:51]} Qd7 {[%emt 0:07:21]} 17. Qxc5 {[%emt 0:07:23]} Bf8 {[%emt 0:00:15]} 18. Nfxe5 {[%emt 0:00:13]} Qc8 {[%emt 0:00:57]} 19. Nd6 {[%emt 0:05:37]} Bxd6 {[%emt 0:00:52]} 20. Qxd6 {[%emt 0:01:12]} Nxe5 {[%emt 0:00:56]} 21. Bb6 {[%emt 0:04:43]} Bb3 {[%emt 0:02:32]} 22. Rxe5 {[%emt 0:01:34]} Bxd1 {[%emt 0:02:27]} 23. Bxc7 {[%emt 0:00:05]} Rxe5 {[%emt 0:02:56]} 24. Qxe5 {[%emt 0:00:02]} Ra8 {[%emt 0:00:01]} 25. Bd5 {[%emt 0:00:31]} Qd7 {[%emt 0:01:15]} 26. Qf6 {[%emt 0:02:23]} Qxc7 {[%emt 0:01:48]} 27. Qxg6+ {[%emt 0:00:02]} Kf8 {[%emt 0:00:06]} 28. Qxh6+ {[%emt 0:00:49]} Ke7 {[%emt 0:00:05]} 29. Qg5+ {[%emt 0:00:36]} Kd7 {[%emt 0:00:55]} 30. Qg4+ Bxg4 {[%emt 0:00:04]} 0-1

[Event "FIDE WYCC Girls U14 2023"]
[Site "Montesilvano"]
[Date "2023.11.16"]
[Round "4.6"]
[White "Kirtadze, Anastasia"]
[Black "Saparya Ghosh"]
[Result "1-0"]
[ECO "C42"]
[WhiteElo "1921"]
[BlackElo "1659"]
[Annotator "NA RC"]
[PlyCount "103"]
[EventDate "2023.11.13"]
[EventType "swiss"]
[EventCountry "ITA"]
[SourceTitle "playchess.com"]
[Source "ChessBase"]
[SourceQuality "1"]
[TimeControl "40/5400+30:1800+30"]

1. e4 {[%emt 0:00:02]} e5 {[%emt 0:00:18]} 2. Nf3 {[%emt 0:00:03]} Nf6 {[%emt 0:00:08]} 3. Nxe5 {[%emt 0:05:26]} d6 {[%emt 0:00:06]} 4. Nf3 {[%emt 0:00:04]} Nxe4 {[%emt 0:00:04]} 5. d4 {[%emt 0:00:27]} d5 {[%emt 0:00:05]} 6. Bd3 {[%emt 0:01:28]} Bg4 {[%emt 0:00:18]} 7. h3 {[%emt 0:11:09]} Bh5 {[%emt 0:02:20]} 8. Be3 {[%emt 0:07:53]} Bd6 {[%emt 0:11:12]} 9. Bxe4 {[%emt 0:12:33]} dxe4 {[%emt 0:00:16]} 10. g4 {[%emt 0:00:03]} Bg6 {[%emt 0:20:40]} 11. Nfd2 {[%emt 0:00:24]} O-O {[%emt 0:15:44]} 12. Nc3 {[%emt 0:01:58]} f5 {[%emt 0:13:51]} 13. gxf5 {[%emt 0:00:35]} Rxf5 {[%emt 0:01:05]} 14. Ndxe4 {[%emt 0:12:45]} Bf4 {[%emt 0:02:25]} 15. Qd2 {[%emt 0:05:37]} Qh4 {[%emt 0:06:09]} 16. O-O-O {[%emt 0:11:28]} Nd7 {[%emt 0:08:41]} 17. Rhg1 {[%emt 0:06:44]} Bxe3 {[%emt 0:06:32]} 18. Qxe3 {[%emt 0:00:23]} Rf4 {[%emt 0:02:30]} 19. Ng3 {[%emt 0:02:20]} Re8 {[%emt 0:01:00]} 20. Qd2 {[%emt 0:00:05]} Ref8 {[%emt 0:00:58]} 21. Rgf1 {[%emt 0:05:33]} Qxh3 {[%emt 0:01:50]} 22. Nd5 {[%emt 0:00:48]} R4f7 {[%emt 0:00:18]} 23. Rde1 {[%emt 0:01:04]} Qh4 {[%emt 0:03:44]} 24. Qe3 {[%emt 0:02:03]} Kh8 {[%emt 0:01:43]} 25. Ne7 {[%emt 0:05:12]} Qf4 {[%emt 0:00:13]} 26. Nxg6+ {[%emt 0:04:12]} hxg6 {[%emt 0:00:01]} 27. Ne4 {[%emt 0:02:04]} Re7 {[%emt 0:01:05]} 28. Qxf4 {[%emt 0:01:29]} Rxf4 {[%emt 0:00:01]} 29. Rh1+ {[%emt 0:00:19]} Kg8 {[%emt 0:00:26]} 30. Nf6+ {[%emt 0:00:04]} Nxf6 31. Rxe7 {[%emt 0:00:05]} Nd5 {[%emt 0:01:33]} 32. Rd7 {[%emt 0:00:35]} Rxd4 {[%emt 0:00:42]} 33. Rd1 {[%emt 0:00:27]} Rxd1+ {[%emt 0:00:29]} 34. Kxd1 {[%emt 0:00:01]} c6 {[%emt 0:00:24]} 35. Rxb7 {[%emt 0:00:04]} a5 {[%emt 0:00:29]} 36. c4 {[%emt 0:00:14]} Nb4 {[%emt 0:00:19]} 37. a3 {[%emt 0:00:06]} Nd3 {[%emt 0:00:07]} 38. Ke2 {[%emt 0:00:11]} Ne5 {[%emt 0:00:13]} 39. c5 {[%emt 0:00:29]} Kf8 {[%emt 0:00:25]} 40. Rc7 {[%emt 0:00:00]} g5 {[%emt 0:00:00]} 41. b3 {[%emt 0:01:41]} g6 {[%emt 0:01:00]} 42. Ra7 {[%emt 0:00:07]} Ke8 {[%emt 0:00:12]} 43. Ke3 {[%emt 0:03:03]} Ng4+ {[%emt 0:00:23]} 44. Kf3 {[%emt 0:00:11]} Nf6 {[%emt 0:00:29]} 45. Rxa5 {[%emt 0:01:14]} Kd7 {[%emt 0:03:36]} 46. Ra7+ {[%emt 0:00:32]} Ke6 {[%emt 0:00:07]} 47. Rg7 {[%emt 0:00:05]} g4+ {[%emt 0:00:12]} 48. Ke2 {[%emt 0:00:43]} Kd5 {[%emt 0:03:59]} 49. Rxg6 {[%emt 0:01:25]} Ne4 {[%emt 0:00:21]} 50. b4 {[%emt 0:00:15]} Nc3+ {[%emt 0:00:26]} 51. Kd3 {[%emt 0:00:40]} Ne4 {[%emt 0:00:12]} 52. Rd6+ {[%emt 0:01:38]} 1-0